[Event "Titled Tuesday Blitz November 14 Early 2023"]
[White "Travadon, Loic"]
[Black "Kanyamarala, Tarun"]
[WhiteFideId "26092131"]
[BlackFideId "45004714"]
[WhiteElo "2185"]
[BlackElo "2476"]
[Result "0-1"]
[Round "2"]
[TimeControl "180+1"]
[Date "2023.11.14"]
[WhiteClock "0:01:04"]
[BlackClock "0:00:30"]
[Board "215"]

1. e4 {[%clk 0:03:00]}  c5 {[%clk 0:02:58]} 2. Nf3 {[%clk 0:02:59]}  e6 {[%clk 0:02:58]} 3. Nc3 {[%clk 0:02:58]}  a6 {[%clk 0:02:58]} 4. d4 {[%clk 0:02:56]}  cxd4 {[%clk 0:02:59]} 5. Nxd4 {[%clk 0:02:53]}  b5 {[%clk 0:02:59]} 6. a4 {[%clk 0:02:49]}  b4 {[%clk 0:02:57]} 7. Nce2 {[%clk 0:02:49]}  Bb7 {[%clk 0:02:56]} 8. Ng3 {[%clk 0:02:47]}  Nc6 {[%clk 0:02:51]} 9. Be3 {[%clk 0:02:46]}  Nf6 {[%clk 0:02:46]} 10. Bd3 {[%clk 0:02:43]}  h5 {[%clk 0:02:37]} 11. h4 {[%clk 0:02:38]}  Ng4 {[%clk 0:02:34]} 12. Nxc6 {[%clk 0:02:34]}  Bxc6 {[%clk 0:02:31]} 13. Bd4 {[%clk 0:02:32]}  e5 {[%clk 0:02:26]} 14. Be3 {[%clk 0:02:28]}  Nxe3 {[%clk 0:02:25]} 15. fxe3 {[%clk 0:02:29]}  g6 {[%clk 0:02:24]} 16. Qf3 {[%clk 0:02:28]}  Bh6 {[%clk 0:02:22]} 17. b3 {[%clk 0:02:23]}  O-O {[%clk 0:02:20]} 18. O-O-O {[%clk 0:02:22]}  Qb6 {[%clk 0:02:19]} 19. Rhe1 {[%clk 0:02:16]}  Rac8 {[%clk 0:02:10]} 20. Bc4 {[%clk 0:02:16]}  Kg7 {[%clk 0:02:06]} 21. Rd6 {[%clk 0:02:11]}  Qd8 {[%clk 0:01:59]} 22. Nxh5+ {[%clk 0:02:06]}  gxh5 {[%clk 0:01:57]} 23. Qxh5 {[%clk 0:02:06]}  f6 {[%clk 0:01:54]} 24. Qf5 {[%clk 0:01:58]}  Qe7 {[%clk 0:01:20]} 25. Rd2 {[%clk 0:01:42]}  d5 {[%clk 0:01:04]} 26. exd5 {[%clk 0:01:41]}  Bd7 {[%clk 0:01:02]} 27. Qf3 {[%clk 0:01:35]}  Qd6 {[%clk 0:00:54]} 28. g4 {[%clk 0:01:33]}  e4 {[%clk 0:00:49]} 29. Qxe4 {[%clk 0:01:30]}  Rce8 {[%clk 0:00:46]} 30. Qd4 {[%clk 0:01:26]}  Qe5 {[%clk 0:00:44]} 31. Qa7 {[%clk 0:01:14]}  Rf7 {[%clk 0:00:36]} 32. Rg2 {[%clk 0:01:11]}  Bxe3+ {[%clk 0:00:35]} 33. Kd1 {[%clk 0:01:08]}  Qa1+ {[%clk 0:00:30]} 34. Ke2 {[%clk 0:01:04]}  Bxa7+ {[%clk 0:00:30]} 0-1


[Site "https://www.chess.com"]

[Event "Titled Tuesday Blitz November 14 Early 2023"]
[White "Grochal, Joey"]
[Black "thisjuan"]
[WhiteFideId "1019945"]
[WhiteElo "2476"]
[BlackElo "2178"]
[Result "1-0"]
[Round "2"]
[TimeControl "180+1"]
[Date "2023.11.14"]
[WhiteClock "0:00:58"]
[BlackClock "0:00:13"]
[Board "216"]

1. e4 {[%clk 0:03:00]}  c5 {[%clk 0:02:55]} 2. Nf3 {[%clk 0:03:00]}  g6 {[%clk 0:02:55]} 3. d4 {[%clk 0:03:01]}  cxd4 {[%clk 0:02:56]} 4. Nxd4 {[%clk 0:03:02]}  Nc6 {[%clk 0:02:56]} 5. Nc3 {[%clk 0:03:02]}  Bg7 {[%clk 0:02:55]} 6. Be3 {[%clk 0:03:03]}  Nf6 {[%clk 0:02:55]} 7. Bc4 {[%clk 0:03:03]}  O-O {[%clk 0:02:55]} 8. Bb3 {[%clk 0:03:04]}  d6 {[%clk 0:02:55]} 9. f3 {[%clk 0:03:04]}  Bd7 {[%clk 0:02:55]} 10. Qd2 {[%clk 0:03:05]}  Nxd4 {[%clk 0:02:55]} 11. Bxd4 {[%clk 0:03:05]}  b5 {[%clk 0:02:56]} 12. O-O-O {[%clk 0:03:03]}  a5 {[%clk 0:02:53]} 13. Nd5 {[%clk 0:02:57]}  Nxd5 {[%clk 0:02:41]} 14. Bxd5 {[%clk 0:02:56]}  Rc8 {[%clk 0:02:32]} 15. Bxg7 {[%clk 0:02:43]}  Kxg7 {[%clk 0:02:31]} 16. h4 {[%clk 0:02:29]}  f6 {[%clk 0:01:50]} 17. h5 {[%clk 0:02:26]}  g5 {[%clk 0:01:49]} 18. h6+ {[%clk 0:02:26]}  Kh8 {[%clk 0:01:46]} 19. f4 {[%clk 0:02:15]}  Qc7 {[%clk 0:01:08]} 20. fxg5 {[%clk 0:02:11]}  fxg5 {[%clk 0:01:08]} 21. Rhf1 {[%clk 0:02:06]}  Rf6 {[%clk 0:01:00]} 22. c3 {[%clk 0:01:56]}  b4 {[%clk 0:00:56]} 23. c4 {[%clk 0:01:42]}  Ba4 {[%clk 0:00:45]} 24. Rxf6 {[%clk 0:01:26]}  exf6 {[%clk 0:00:44]} 25. Qd4 {[%clk 0:01:26]}  Qe7 {[%clk 0:00:41]} 26. b3 {[%clk 0:01:23]}  Bc6 {[%clk 0:00:37]} 27. Bxc6 {[%clk 0:01:20]}  Rxc6 {[%clk 0:00:37]} 28. Rf1 {[%clk 0:01:21]}  Qe5 {[%clk 0:00:36]} 29. Qxe5 {[%clk 0:01:17]}  dxe5 {[%clk 0:00:35]} 30. Rd1 {[%clk 0:01:14]}  Kg8 {[%clk 0:00:35]} 31. Rd7 {[%clk 0:01:11]}  a4 {[%clk 0:00:36]} 32. g4 {[%clk 0:01:05]}  f5 {[%clk 0:00:30]} 33. exf5 {[%clk 0:01:00]}  Rxh6 {[%clk 0:00:30]} 34. bxa4 {[%clk 0:01:00]}  Rh2 {[%clk 0:00:28]} 35. Kb1 {[%clk 0:00:58]}  Rg2 {[%clk 0:00:20]} 36. a5 {[%clk 0:00:58]}  Rg1+ {[%clk 0:00:15]} 37. Kb2 {[%clk 0:00:57]}  Rg2+ {[%clk 0:00:16]} 38. Kb3 {[%clk 0:00:58]}  Rg3+ {[%clk 0:00:16]} 39. Kxb4 {[%clk 0:00:58]}  Rg2 {[%clk 0:00:17]} 40. a4 {[%clk 0:00:58]}  Rb2+ {[%clk 0:00:16]} 41. Kc5 {[%clk 0:00:59]}  Ra2 {[%clk 0:00:16]} 42. Kb5 {[%clk 0:00:58]}  Rb2+ {[%clk 0:00:16]} 43. Kc6 {[%clk 0:00:59]}  Ra2 {[%clk 0:00:16]} 44. a6 {[%clk 0:00:59]}  Rxa4 {[%clk 0:00:17]} 45. a7 {[%clk 0:00:58]}  Rxc4+ {[%clk 0:00:15]} 46. Kb7 {[%clk 0:00:57]}  Rb4+ {[%clk 0:00:15]} 47. Kc8 {[%clk 0:00:57]}  Rc4+ {[%clk 0:00:15]} 48. Rc7 {[%clk 0:00:57]}  Ra4 {[%clk 0:00:16]} 49. Kb8 {[%clk 0:00:58]}  Rb4+ {[%clk 0:00:16]} 50. Rb7 {[%clk 0:00:58]}  Ra4 {[%clk 0:00:16]} 51. a8=Q {[%clk 0:00:58]}  Rxa8+ {[%clk 0:00:16]} 52. Kxa8 {[%clk 0:00:59]}  h5 {[%clk 0:00:15]} 53. gxh5 {[%clk 0:00:58]}  e4 {[%clk 0:00:15]} 54. Ka7 {[%clk 0:00:57]}  e3 {[%clk 0:00:15]} 55. Rb3 {[%clk 0:00:57]}  e2 {[%clk 0:00:15]} 56. Re3 {[%clk 0:00:58]}  g4 {[%clk 0:00:13]} 57. Rxe2 {[%clk 0:00:58]} 1-0


[Site "https://www.chess.com"]

[Event "Titled Tuesday Blitz November 14 Early 2023"]
[White "Tomb, Maroun"]
[Black "Feliz Dotel, Dewar Bienvenido"]
[WhiteFideId "5300398"]
[BlackFideId "6402801"]
[WhiteElo "2470"]
[BlackElo "2155"]
[Result "1-0"]
[Round "2"]
[TimeControl "180+1"]
[Date "2023.11.14"]
[WhiteClock "0:01:00"]
[BlackClock "0:00:03"]
[Board "219"]

1. e4 {[%clk 0:03:00]}  e5 {[%clk 0:02:59]} 2. Nf3 {[%clk 0:03:00]}  Nc6 {[%clk 0:02:59]} 3. Bb5 {[%clk 0:03:01]}  Nf6 {[%clk 0:02:59]} 4. d4 {[%clk 0:03:00]}  exd4 {[%clk 0:02:53]} 5. O-O {[%clk 0:03:01]}  Nxe4 {[%clk 0:02:53]} 6. Re1 {[%clk 0:03:00]}  d5 {[%clk 0:02:53]} 7. Nxd4 {[%clk 0:03:00]}  Bd7 {[%clk 0:02:49]} 8. Bxc6 {[%clk 0:02:52]}  bxc6 {[%clk 0:02:49]} 9. f3 {[%clk 0:02:53]}  Bc5 {[%clk 0:02:39]} 10. fxe4 {[%clk 0:02:52]}  O-O {[%clk 0:02:33]} 11. exd5 {[%clk 0:02:52]}  cxd5 {[%clk 0:02:30]} 12. Be3 {[%clk 0:02:49]}  Re8 {[%clk 0:02:29]} 13. c3 {[%clk 0:02:49]}  Qh4 {[%clk 0:02:27]} 14. Bf2 {[%clk 0:02:49]}  Qf6 {[%clk 0:02:21]} 15. Nd2 {[%clk 0:02:46]}  Rxe1+ {[%clk 0:02:19]} 16. Qxe1 {[%clk 0:02:47]}  Re8 {[%clk 0:02:19]} 17. Qf1 {[%clk 0:02:47]}  Bd6 {[%clk 0:02:13]} 18. b4 {[%clk 0:02:41]}  Qh6 {[%clk 0:01:56]} 19. N2f3 {[%clk 0:02:41]}  Bg4 {[%clk 0:01:56]} 20. Re1 {[%clk 0:02:36]}  Re4 {[%clk 0:01:55]} 21. h3 {[%clk 0:02:31]}  Bxh3 {[%clk 0:01:44]} 22. gxh3 {[%clk 0:02:18]}  Qf4 {[%clk 0:01:04]} 23. Qg2 {[%clk 0:01:52]}  c5 {[%clk 0:00:52]} 24. bxc5 {[%clk 0:01:50]}  Bxc5 {[%clk 0:00:53]} 25. Rxe4 {[%clk 0:01:46]}  dxe4 {[%clk 0:00:53]} 26. Ng5 {[%clk 0:01:46]}  Qc1+ {[%clk 0:00:49]} 27. Kh2 {[%clk 0:01:42]}  Bd6+ {[%clk 0:00:37]} 28. Bg3 {[%clk 0:01:42]}  Bxg3+ {[%clk 0:00:34]} 29. Qxg3 {[%clk 0:01:40]}  Qd2+ {[%clk 0:00:34]} 30. Qg2 {[%clk 0:01:14]}  Qf4+ {[%clk 0:00:28]} 31. Qg3 {[%clk 0:01:10]}  Qd2+ {[%clk 0:00:26]} 32. Kg1 {[%clk 0:01:10]}  Qc1+ {[%clk 0:00:23]} 33. Kf2 {[%clk 0:01:07]}  Qd2+ {[%clk 0:00:23]} 34. Ne2 {[%clk 0:01:08]}  g6 {[%clk 0:00:19]} 35. Nxe4 {[%clk 0:01:07]}  Qxa2 {[%clk 0:00:15]} 36. Qb8+ {[%clk 0:01:07]}  Kg7 {[%clk 0:00:15]} 37. Qe5+ {[%clk 0:01:08]}  Kg8 {[%clk 0:00:06]} 38. Nf6+ {[%clk 0:01:06]}  Kf8 {[%clk 0:00:07]} 39. Nxh7+ {[%clk 0:01:04]}  Kg8 {[%clk 0:00:07]} 40. Nf6+ {[%clk 0:01:05]}  Kf8 {[%clk 0:00:06]} 41. Nd7+ {[%clk 0:00:59]}  Kg8 {[%clk 0:00:06]} 42. Qe8+ {[%clk 0:00:59]}  Kg7 {[%clk 0:00:05]} 43. Qf8+ {[%clk 0:00:59]}  Kh7 {[%clk 0:00:03]} 44. Nf6# {[%clk 0:01:00]} 1-0


[Site "https://www.chess.com"]

[Event "Titled Tuesday Blitz November 14 Early 2023"]
[White "Domingo Nunez, Alejandro"]
[Black "DonCiao"]
[WhiteFideId "22245561"]
[WhiteElo "2466"]
[BlackElo "2129"]
[Result "1-0"]
[Round "2"]
[TimeControl "180+1"]
[Date "2023.11.14"]
[WhiteClock "0:00:35"]
[BlackClock "0:00:00"]
[Board "224"]

1. Nf3 {[%clk 0:03:00]}  g6 {[%clk 0:02:56]} 2. e4 {[%clk 0:03:00]}  Bg7 {[%clk 0:02:54]} 3. d4 {[%clk 0:03:00]}  d6 {[%clk 0:02:54]} 4. h3 {[%clk 0:03:00]}  c6 {[%clk 0:02:43]} 5. Bd3 {[%clk 0:03:00]}  b5 {[%clk 0:02:41]} 6. O-O {[%clk 0:03:00]}  Nd7 {[%clk 0:02:40]} 7. Re1 {[%clk 0:03:00]}  e5 {[%clk 0:02:37]} 8. a4 {[%clk 0:02:59]}  b4 {[%clk 0:02:21]} 9. dxe5 {[%clk 0:02:58]}  dxe5 {[%clk 0:02:20]} 10. Nbd2 {[%clk 0:02:57]}  Qe7 {[%clk 0:02:07]} 11. Nc4 {[%clk 0:02:52]}  Ngf6 {[%clk 0:02:00]} 12. Bd2 {[%clk 0:02:45]}  O-O {[%clk 0:01:58]} 13. a5 {[%clk 0:02:42]}  Ne8 {[%clk 0:01:52]} 14. Ra4 {[%clk 0:02:33]}  Rb8 {[%clk 0:01:47]} 15. Bf1 {[%clk 0:02:17]}  Ba6 {[%clk 0:01:31]} 16. Ncxe5 {[%clk 0:02:07]}  Nxe5 {[%clk 0:01:21]} 17. Bxa6 {[%clk 0:02:02]}  Nxf3+ {[%clk 0:01:20]} 18. Qxf3 {[%clk 0:02:02]}  Bxb2 {[%clk 0:01:20]} 19. Rb1 {[%clk 0:01:58]}  Nc7 {[%clk 0:01:13]} 20. Bc4 {[%clk 0:01:51]}  Ba3 {[%clk 0:00:57]} 21. Bh6 {[%clk 0:01:16]}  Rfe8 {[%clk 0:00:53]} 22. h4 {[%clk 0:00:59]}  Nb5 {[%clk 0:00:50]} 23. Bg5 {[%clk 0:00:55]}  Qf8 {[%clk 0:00:46]} 24. Bf6 {[%clk 0:00:45]}  Nd6 {[%clk 0:00:38]} 25. Bd3 {[%clk 0:00:41]}  c5 {[%clk 0:00:35]} 26. e5 {[%clk 0:00:41]}  Nb5 {[%clk 0:00:30]} 27. Bxb5 {[%clk 0:00:39]}  Rxb5 {[%clk 0:00:29]} 28. Rxa3 {[%clk 0:00:40]}  bxa3 {[%clk 0:00:25]} 29. Rxb5 {[%clk 0:00:38]}  a2 {[%clk 0:00:19]} 30. Qa3 {[%clk 0:00:38]}  Rb8 {[%clk 0:00:17]} 31. Rxb8 {[%clk 0:00:36]}  Qxb8 {[%clk 0:00:17]} 32. Qxa2 {[%clk 0:00:37]}  Qb4 {[%clk 0:00:00]} 33. Qb3 {[%clk 0:00:35]} 1-0


[Site "https://www.chess.com"]

[Event "Titled Tuesday Blitz November 14 Early 2023"]
[White "Rengifo Blancas, Renzo Jhonathan"]
[Black "Fernandez Hernandez, Gerardo"]
[WhiteFideId "3807185"]
[BlackFideId "2207400"]
[WhiteElo "2464"]
[BlackElo "2122"]
[Result "1-0"]
[Round "2"]
[TimeControl "180+1"]
[Date "2023.11.14"]
[WhiteClock "0:00:11"]
[BlackClock "0:00:00"]
[Board "225"]

1. e4 {[%clk 0:03:00]}  e6 {[%clk 0:03:00]} 2. d4 {[%clk 0:02:55]}  d5 {[%clk 0:03:00]} 3. Nc3 {[%clk 0:02:56]}  Nc6 {[%clk 0:03:00]} 4. exd5 {[%clk 0:02:55]}  exd5 {[%clk 0:03:00]} 5. Nf3 {[%clk 0:02:56]}  Nf6 {[%clk 0:02:59]} 6. Bd3 {[%clk 0:02:57]}  Bb4 {[%clk 0:02:58]} 7. O-O {[%clk 0:02:58]}  O-O {[%clk 0:02:58]} 8. Ne5 {[%clk 0:02:59]}  Nxd4 {[%clk 0:02:45]} 9. Bg5 {[%clk 0:02:46]}  Bxc3 {[%clk 0:02:32]} 10. bxc3 {[%clk 0:02:44]}  Nc6 {[%clk 0:02:30]} 11. f4 {[%clk 0:02:39]}  Qd6 {[%clk 0:02:16]} 12. Qf3 {[%clk 0:02:36]}  Nxe5 {[%clk 0:02:03]} 13. fxe5 {[%clk 0:02:35]}  Qxe5 {[%clk 0:02:03]} 14. Bxf6 {[%clk 0:02:35]}  Qxf6 {[%clk 0:02:01]} 15. Qxf6 {[%clk 0:01:58]}  gxf6 {[%clk 0:02:00]} 16. Rxf6 {[%clk 0:01:55]}  Kg7 {[%clk 0:01:45]} 17. Raf1 {[%clk 0:01:49]}  Be6 {[%clk 0:01:27]} 18. R6f4 {[%clk 0:01:30]}  Rg8 {[%clk 0:00:54]} 19. Rh4 {[%clk 0:01:19]}  h6 {[%clk 0:00:54]} 20. Rh5 {[%clk 0:01:05]}  c5 {[%clk 0:00:39]} 21. Bf5 {[%clk 0:00:56]}  Rae8 {[%clk 0:00:20]} 22. Rf3 {[%clk 0:00:37]}  b6 {[%clk 0:00:16]} 23. Rg3+ {[%clk 0:00:36]}  Kf6 {[%clk 0:00:16]} 24. Bxe6 {[%clk 0:00:35]}  fxe6 {[%clk 0:00:15]} 25. Rxh6+ {[%clk 0:00:32]}  Ke5 {[%clk 0:00:14]} 26. Re3+ {[%clk 0:00:24]}  Kd6 {[%clk 0:00:14]} 27. h4 {[%clk 0:00:23]}  Rg4 {[%clk 0:00:12]} 28. h5 {[%clk 0:00:23]}  Kd7 {[%clk 0:00:10]} 29. Rf6 {[%clk 0:00:22]}  Re7 {[%clk 0:00:09]} 30. h6 {[%clk 0:00:22]}  Rh4 {[%clk 0:00:09]} 31. g3 {[%clk 0:00:21]}  Rh5 {[%clk 0:00:08]} 32. g4 {[%clk 0:00:21]}  Rh4 {[%clk 0:00:08]} 33. Rg3 {[%clk 0:00:21]}  Rh7 {[%clk 0:00:08]} 34. g5 {[%clk 0:00:21]}  Ke7 {[%clk 0:00:04]} 35. Rf2 {[%clk 0:00:12]}  Re4 {[%clk 0:00:03]} 36. g6 {[%clk 0:00:10]}  Rxh6 {[%clk 0:00:00]} 37. g7 {[%clk 0:00:11]} 1-0


[Site "https://www.chess.com"]

[Event "Titled Tuesday Blitz November 14 Early 2023"]
[White "vovasev"]
[Black "arenal72"]
[WhiteElo "2122"]
[BlackElo "2463"]
[Result "0-1"]
[Round "2"]
[TimeControl "180+1"]
[Date "2023.11.14"]
[WhiteClock "0:00:56"]
[BlackClock "0:00:23"]
[Board "226"]

1. e4 {[%clk 0:02:56]}  Nc6 {[%clk 0:02:58]} 2. Nf3 {[%clk 0:02:55]}  d6 {[%clk 0:02:58]} 3. Bb5 {[%clk 0:02:55]}  g6 {[%clk 0:02:57]} 4. c3 {[%clk 0:02:54]}  Nf6 {[%clk 0:02:56]} 5. d3 {[%clk 0:02:53]}  Bg7 {[%clk 0:02:56]} 6. O-O {[%clk 0:02:53]}  O-O {[%clk 0:02:56]} 7. h3 {[%clk 0:02:52]}  e5 {[%clk 0:02:54]} 8. Nbd2 {[%clk 0:02:51]}  h6 {[%clk 0:02:51]} 9. Bxc6 {[%clk 0:02:51]}  bxc6 {[%clk 0:02:50]} 10. d4 {[%clk 0:02:51]}  exd4 {[%clk 0:02:49]} 11. Nxd4 {[%clk 0:02:50]}  c5 {[%clk 0:02:47]} 12. Nc2 {[%clk 0:02:49]}  Ba6 {[%clk 0:02:45]} 13. Re1 {[%clk 0:02:49]}  Re8 {[%clk 0:02:45]} 14. f3 {[%clk 0:02:46]}  Bd3 {[%clk 0:02:35]} 15. Nf1 {[%clk 0:02:44]}  Bxf1 {[%clk 0:02:24]} 16. Rxf1 {[%clk 0:02:43]}  Rb8 {[%clk 0:02:22]} 17. Ne3 {[%clk 0:02:40]}  Nd7 {[%clk 0:02:19]} 18. Qc2 {[%clk 0:02:39]}  a5 {[%clk 0:02:13]} 19. Bd2 {[%clk 0:02:36]}  h5 {[%clk 0:02:05]} 20. Rab1 {[%clk 0:02:34]}  Qc8 {[%clk 0:02:00]} 21. c4 {[%clk 0:02:21]}  Qa6 {[%clk 0:01:51]} 22. Bc3 {[%clk 0:02:20]}  Bd4 {[%clk 0:01:48]} 23. Bxd4 {[%clk 0:02:17]}  cxd4 {[%clk 0:01:49]} 24. Nd5 {[%clk 0:02:14]}  Rbc8 {[%clk 0:01:41]} 25. b3 {[%clk 0:02:05]}  c6 {[%clk 0:01:39]} 26. Nf4 {[%clk 0:02:04]}  Qb6 {[%clk 0:01:36]} 27. Nd3 {[%clk 0:02:03]}  Ne5 {[%clk 0:01:24]} 28. Rfd1 {[%clk 0:01:55]}  Qd8 {[%clk 0:01:12]} 29. Nf4 {[%clk 0:01:53]}  Qh4 {[%clk 0:01:07]} 30. Ne2 {[%clk 0:01:48]}  d3 {[%clk 0:01:05]} 31. Rxd3 {[%clk 0:01:47]}  Nxd3 {[%clk 0:01:05]} 32. Qxd3 {[%clk 0:01:47]}  d5 {[%clk 0:01:04]} 33. cxd5 {[%clk 0:01:46]}  cxd5 {[%clk 0:01:04]} 34. Qxd5 {[%clk 0:01:44]}  Rc2 {[%clk 0:01:04]} 35. Qd3 {[%clk 0:01:36]}  Rxa2 {[%clk 0:01:02]} 36. Rf1 {[%clk 0:01:32]}  Rd8 {[%clk 0:01:01]} 37. Qc4 {[%clk 0:01:29]}  Rdd2 {[%clk 0:00:59]} 38. Qc8+ {[%clk 0:01:21]}  Kh7 {[%clk 0:00:56]} 39. Qc7 {[%clk 0:01:19]}  Qf6 {[%clk 0:00:45]} 40. Rf2 {[%clk 0:01:14]}  Rxe2 {[%clk 0:00:42]} 41. Rxe2 {[%clk 0:01:13]}  Rxe2 {[%clk 0:00:43]} 42. Qc5 {[%clk 0:01:12]}  Qb2 {[%clk 0:00:37]} 43. Qg5 {[%clk 0:01:09]}  f6 {[%clk 0:00:34]} 44. Qg3 {[%clk 0:01:08]}  g5 {[%clk 0:00:32]} 45. h4 {[%clk 0:01:06]}  Qc1+ {[%clk 0:00:26]} 46. Kh2 {[%clk 0:01:05]}  Qf4 {[%clk 0:00:25]} 47. hxg5 {[%clk 0:01:04]}  Qxg3+ {[%clk 0:00:22]} 48. Kxg3 {[%clk 0:00:56]}  fxg5 {[%clk 0:00:23]} 0-1


[Site "https://www.chess.com"]

[Event "Titled Tuesday Blitz November 14 Early 2023"]
[White "Ghosh, Chanchal Kumer"]
[Black "Devaev, Alexander"]
[WhiteFideId "10201858"]
[BlackFideId "4169395"]
[WhiteElo "2114"]
[BlackElo "2458"]
[Result "0-1"]
[Round "2"]
[TimeControl "180+1"]
[Date "2023.11.14"]
[WhiteClock "0:00:00"]
[BlackClock "0:01:49"]
[Board "227"]

1. e4 {[%clk 0:01:24]}  c6 {[%clk 0:02:57]} 2. Nf3 {[%clk 0:01:24]}  d5 {[%clk 0:02:58]} 3. Nc3 {[%clk 0:01:24]}  Nf6 {[%clk 0:02:57]} 4. e5 {[%clk 0:01:24]}  Ne4 {[%clk 0:02:58]} 5. d3 {[%clk 0:01:23]}  Nxc3 {[%clk 0:02:58]} 6. bxc3 {[%clk 0:01:24]}  Bg4 {[%clk 0:02:58]} 7. Be2 {[%clk 0:01:23]}  e6 {[%clk 0:02:58]} 8. O-O {[%clk 0:01:23]}  Be7 {[%clk 0:02:58]} 9. h3 {[%clk 0:01:19]}  Bxf3 {[%clk 0:02:57]} 10. Bxf3 {[%clk 0:01:19]}  Nd7 {[%clk 0:02:58]} 11. Re1 {[%clk 0:01:18]}  O-O {[%clk 0:02:57]} 12. d4 {[%clk 0:01:09]}  Rc8 {[%clk 0:02:40]} 13. Rb1 {[%clk 0:01:05]}  b6 {[%clk 0:02:36]} 14. Qe2 {[%clk 0:01:04]}  c5 {[%clk 0:02:32]} 15. Ba3 {[%clk 0:00:48]}  cxd4 {[%clk 0:02:30]} 16. Bxe7 {[%clk 0:00:47]}  Qxe7 {[%clk 0:02:31]} 17. cxd4 {[%clk 0:00:47]}  Rc4 {[%clk 0:02:30]} 18. Red1 {[%clk 0:00:39]}  Rfc8 {[%clk 0:02:31]} 19. Rd2 {[%clk 0:00:36]}  Qa3 {[%clk 0:02:31]} 20. Bh5 {[%clk 0:00:13]}  g6 {[%clk 0:02:29]} 21. Bg4 {[%clk 0:00:12]}  Qxa2 {[%clk 0:02:25]} 22. Rb3 {[%clk 0:00:11]}  Rxc2 {[%clk 0:02:22]} 23. Rxc2 {[%clk 0:00:11]}  Qxc2 {[%clk 0:02:21]} 24. Qb5 {[%clk 0:00:11]}  Qc1+ {[%clk 0:02:05]} 25. Kh2 {[%clk 0:00:11]}  Qf4+ {[%clk 0:02:05]} 26. Rg3 {[%clk 0:00:11]}  Rc7 {[%clk 0:02:05]} 27. Be2 {[%clk 0:00:09]}  Qxd4 {[%clk 0:02:02]} 28. Qb3 {[%clk 0:00:06]}  Qxe5 {[%clk 0:02:00]} 29. Bb5 {[%clk 0:00:07]}  Nc5 {[%clk 0:01:58]} 30. Qa3 {[%clk 0:00:07]}  Ne4 {[%clk 0:01:56]} 31. Qe3 {[%clk 0:00:00]}  Rc3 {[%clk 0:01:49]} 0-1


[Site "https://www.chess.com"]

[Event "Titled Tuesday Blitz November 14 Early 2023"]
[White "UNSTOPPABLE_LEGEND"]
[Black "Suduvasachmatai"]
[WhiteElo "2458"]
[BlackElo "2113"]
[Result "1-0"]
[Round "2"]
[TimeControl "180+1"]
[Date "2023.11.14"]
[WhiteClock "0:00:33"]
[BlackClock "0:00:31"]
[Board "228"]

1. e4 {[%clk 0:03:00]}  c5 {[%clk 0:02:58]} 2. Nf3 {[%clk 0:03:01]}  d6 {[%clk 0:02:57]} 3. d4 {[%clk 0:02:59]}  cxd4 {[%clk 0:02:58]} 4. Nxd4 {[%clk 0:03:00]}  Nf6 {[%clk 0:02:58]} 5. Nc3 {[%clk 0:03:00]}  a6 {[%clk 0:02:59]} 6. h3 {[%clk 0:03:00]}  e6 {[%clk 0:02:59]} 7. g4 {[%clk 0:03:00]}  Be7 {[%clk 0:02:59]} 8. Bg2 {[%clk 0:02:55]}  O-O {[%clk 0:02:58]} 9. g5 {[%clk 0:02:54]}  Nfd7 {[%clk 0:02:57]} 10. h4 {[%clk 0:02:54]}  Nc6 {[%clk 0:02:54]} 11. Be3 {[%clk 0:02:53]}  f6 {[%clk 0:02:39]} 12. Nxe6 {[%clk 0:02:52]}  Qa5 {[%clk 0:02:33]} 13. Nxf8 {[%clk 0:02:38]}  Nxf8 {[%clk 0:02:31]} 14. Qd5+ {[%clk 0:02:33]}  Qxd5 {[%clk 0:02:30]} 15. Nxd5 {[%clk 0:02:34]}  fxg5 {[%clk 0:02:28]} 16. hxg5 {[%clk 0:02:27]}  Be6 {[%clk 0:02:27]} 17. Nc7 {[%clk 0:02:19]}  Rc8 {[%clk 0:02:26]} 18. Nxe6 {[%clk 0:02:18]}  Nxe6 {[%clk 0:02:26]} 19. Bh3 {[%clk 0:02:19]}  Kf7 {[%clk 0:02:24]} 20. Bxe6+ {[%clk 0:02:17]}  Kxe6 {[%clk 0:02:24]} 21. Rxh7 {[%clk 0:02:18]}  Ne5 {[%clk 0:02:20]} 22. O-O-O {[%clk 0:02:15]}  Ng4 {[%clk 0:02:16]} 23. Rxg7 {[%clk 0:02:12]}  Rf8 {[%clk 0:01:55]} 24. g6 {[%clk 0:01:49]}  Nxf2 {[%clk 0:01:47]} 25. Bxf2 {[%clk 0:01:39]}  Rxf2 {[%clk 0:01:47]} 26. Rg1 {[%clk 0:01:40]}  Rf8 {[%clk 0:01:29]} 27. Rf7 {[%clk 0:01:21]}  Rg8 {[%clk 0:01:19]} 28. Kd2 {[%clk 0:01:20]}  b5 {[%clk 0:01:14]} 29. Kd3 {[%clk 0:01:19]}  Bf6 {[%clk 0:01:13]} 30. Rxf6+ {[%clk 0:00:24]}  Kxf6 {[%clk 0:01:11]} 31. g7 {[%clk 0:00:25]}  Rxg7 {[%clk 0:01:06]} 32. Rxg7 {[%clk 0:00:26]}  Kxg7 {[%clk 0:01:07]} 33. Kd4 {[%clk 0:00:26]}  Kf6 {[%clk 0:01:07]} 34. Kd5 {[%clk 0:00:27]}  Ke7 {[%clk 0:01:08]} 35. a3 {[%clk 0:00:27]}  Kd7 {[%clk 0:01:08]} 36. b3 {[%clk 0:00:27]}  a5 {[%clk 0:01:08]} 37. c4 {[%clk 0:00:27]}  a4 {[%clk 0:00:54]} 38. bxa4 {[%clk 0:00:25]}  bxa4 {[%clk 0:00:54]} 39. e5 {[%clk 0:00:24]}  dxe5 {[%clk 0:00:54]} 40. Kxe5 {[%clk 0:00:25]}  Kc6 {[%clk 0:00:54]} 41. Kd4 {[%clk 0:00:25]}  Kd6 {[%clk 0:00:54]} 42. Kd3 {[%clk 0:00:25]}  Kc5 {[%clk 0:00:54]} 43. Kc3 {[%clk 0:00:25]}  Kb6 {[%clk 0:00:48]} 44. Kb4 {[%clk 0:00:25]}  Kc6 {[%clk 0:00:48]} 45. Kxa4 {[%clk 0:00:26]}  Kc5 {[%clk 0:00:48]} 46. Kb3 {[%clk 0:00:27]}  Kc6 {[%clk 0:00:47]} 47. a4 {[%clk 0:00:28]}  Kc5 {[%clk 0:00:47]} 48. a5 {[%clk 0:00:29]}  Kc6 {[%clk 0:00:44]} 49. Kb4 {[%clk 0:00:29]}  Kb7 {[%clk 0:00:44]} 50. c5 {[%clk 0:00:30]}  Ka6 {[%clk 0:00:37]} 51. c6 {[%clk 0:00:30]}  Ka7 {[%clk 0:00:37]} 52. Kb5 {[%clk 0:00:31]}  Kb8 {[%clk 0:00:37]} 53. Kb6 {[%clk 0:00:32]}  Ka8 {[%clk 0:00:34]} 54. a6 {[%clk 0:00:33]}  Kb8 {[%clk 0:00:35]} 55. c7+ {[%clk 0:00:32]}  Kc8 {[%clk 0:00:35]} 56. a7 {[%clk 0:00:32]}  Kd7 {[%clk 0:00:31]} 57. a8=Q {[%clk 0:00:33]} 1-0


[Site "https://www.chess.com"]